fUST/lending_fUST_20250225
["ID","MTS","AMOUNT","RATE_DAILY","PERIOD"]
[354426798,1740485446772,-250.0,0.00066027,120]
[354426799,1740485446781,-500.0,0.00066027,120]
[354426800,1740485446791,-500.0,0.00066027,120]
[354426802,1740485446800,-36926.2,0.00066027,6]
[354426804,1740485446810,-500.0,0.00066027,120]
[354426806,1740485446819,-500.0,0.00066027,120]
[354426808,1740485446829,-1053.35,0.00066027,120]
[354426810,1740485446841,-500.0,0.00066027,120]
[354426811,1740485446851,-500.0,0.00066027,120]
[354426812,1740485446861,-500.0,0.00066027,120]
[354426813,1740485446871,-500.0,0.00066027,120]
[354426814,1740485446880,-578.89,0.00066027,120]
[354426815,1740485446890,-500.0,0.00066027,120]
[354426816,1740485446900,-1999.03,0.00066027,120]
[354426817,1740485446909,-1172.97,0.00066027,120]
[354426818,1740485446918,-500.0,0.00066027,120]
[354426819,1740485446928,-500.0,0.00066027,120]
[354426820,1740485446937,-500.0,0.00066027,120]
[354426821,1740485446947,-548.26,0.00066027,120]
[354426822,1740485446956,-500.0,0.00066027,120]
[354426823,1740485446966,-500.0,0.00066027,120]
[354426824,1740485446976,-1939.25,0.00066027,120]
[354426825,1740485446985,-503.11307915,0.00066027,120]
[354426826,1740485446995,-500.0,0.00066027,120]
[354426827,1740485447005,-500.0,0.00066027,120]
[354426828,1740485447015,-6398.6,0.00066027,120]
[354426829,1740485447024,-500.0,0.00066027,30]
[354426830,1740485447034,-536.99,0.00066027,120]
[354426831,1740485447043,-500.0,0.00066027,120]
[354426832,1740485447053,-654.9,0.00066027,120]
[354426833,1740485447062,-500.0,0.00066027,120]
[354426834,1740485447072,-500.0,0.00066027,120]
[354426835,1740485447081,-177373.63,0.00066027,7]
[354426836,1740485447091,-1429.57,0.00066027,120]
[354426837,1740485447100,-500.0,0.00066027,120]
[354426838,1740485447111,-500.0,0.00066027,120]
[354426839,1740485447119,-609.5,0.00066027,120]
[354426841,1740485447129,-296.17137374,0.00066027,120]
[354426842,1740485447138,-500.0,0.00066027,120]
[354426843,1740485447148,-3033.53,0.00066027,120]
[354426844,1740485447157,-500.0,0.00066027,120]
[354426845,1740485447166,-500.0,0.00066027,120]
[354426846,1740485447176,-523.36,0.00066027,120]
[354426847,1740485447185,-500.0,0.00066027,120]
[354426848,1740485447195,-510.31,0.00066027,120]
[354426849,1740485447205,-500.0,0.00066027,120]
[354426850,1740485447214,-884.39,0.00066027,120]
[354426851,1740485447224,-500.0,0.00066027,120]
[354426852,1740485447234,-1351.64,0.00066027,120]
[354426853,1740485447243,-500.0,0.00066027,120]
[354426854,1740485447253,-500.0,0.00066027,120]
[354426855,1740485447262,-1374.68,0.00066027,120]
[354426856,1740485447272,-500.0,0.00066027,120]
[354426857,1740485447281,-500.0,0.00066027,120]
[354426858,1740485447291,-1393.49,0.00066027,120]
[354426859,1740485447300,-500.0,0.00066027,120]
[354426860,1740485447309,-151.0,0.00066027,120]
[354426861,1740485447319,-602.23,0.00066027,120]
[354426862,1740485447328,-4727.75,0.00066027,120]
[354426863,1740485447337,-151.0,0.00066027,120]
[354426864,1740485447347,-151.0,0.00066027,120]
[354426865,1740485447358,-36054.27,0.00066027,120]
[354426866,1740485447367,-244.861442,0.00066027,5]
[354426867,1740485447376,-528.01,0.00066027,120]
[354426868,1740485447386,-965.45,0.00066027,120]
[354426869,1740485447396,-500.0,0.00066047,2]
[354426870,1740485447405,-500.0,0.00066147,2]
[354426871,1740485447416,-500.0,0.00066247,2]
[354426872,1740485447426,-2465.8686746,0.00066272,14]
[354426873,1740485447435,-683.45,0.00066347,2]
[354426874,1740485447445,-5000.007,0.000665,80]
[354426875,1740485447454,-688.5587927,0.00066616,120]
[354426876,1740485447463,-10000.0,0.0006668,2]
[354426877,1740485447473,-4000.0,0.0006668,2]
[354426878,1740485447483,-5000.0,0.00066686,60]
[354426879,1740485447493,-5000.0,0.00066686,60]
[354426880,1740485447503,-500.0,0.00067069,120]
[354426881,1740485447512,-1086.37,0.00067069,120]
[354426882,1740485447522,-620.96,0.00067069,120]
[354426883,1740485447532,-956.7,0.00067069,120]
[354426884,1740485447542,-799.78,0.00067069,120]
[354426885,1740485447552,-1100.17,0.00067069,120]
[354426886,1740485447562,-500.0,0.00067069,120]
[354426887,1740485447571,-2352.71,0.00067069,120]
[354426888,1740485447581,-499.0,0.00067112,120]
[354426889,1740485447590,-1839.27,0.00067123,120]
[354426890,1740485447599,-235.59535633,0.00067123,120]
[354426891,1740485448387,200.0,0.00035,120]
[354426892,1740485448462,-200.0,0.000393,120]
[354426893,1740485448473,-200.0,0.000436,120]
[354426894,1740485448483,-500.0,0.00059176,120]
[354426895,1740485448494,-426.48,0.00059176,120]
[354426896,1740485448904,-201.22562,0.000479,120]
[354426897,1740485448914,-202.65325679,0.00059176,120]
[354426898,1740485448924,-500.0,0.00059176,120]
[354426899,1740485448933,-500.0,0.00059176,2]
[354426900,1740485448943,-500.0,0.00059176,120]
[354426901,1740485448953,-500.0,0.00059176,120]
[354426902,1740485448963,-500.0,0.00059176,2]
[354426903,1740485448973,-513.22715355,0.00059176,120]
[354426904,1740485448982,-500.43877609,0.00059176,2]
[354426905,1740485448992,-500.0,0.00059176,120]
[354426906,1740485449004,-500.0,0.00059176,120]
[354426907,1740485449014,-500.0,0.00059176,120]
[354426908,1740485449023,-500.0,0.00059176,120]
[354426909,1740485449033,-283.0199378,0.00059176,120]
[354426910,1740485449043,-158.42710047,0.00059177,120]
[354426911,1740485449053,-500.0,0.00059177,120]
[354426912,1740485449063,-528.88756702,0.00060547,120]
[354426913,1740485449072,-500.0,0.00061642,120]
[354426914,1740485449082,-500.0,0.00063012,120]
[354426915,1740485449092,-500.0,0.00064382,120]
[354426916,1740485449101,-523.17,0.00065699,120]
[354426917,1740485449113,-523.17,0.00065699,120]
[354426918,1740485449123,-523.17,0.00065699,120]
[354426919,1740485449133,-523.2,0.00065699,120]
[354426920,1740485449143,-286.61502944,0.00065752,120]
[354426921,1740485449153,-2370.06464367,0.00067123,120]
[354426922,1740485449163,-500.0,0.00067123,120]
[354426923,1740485449173,-1329.66,0.00067123,120]
[354426924,1740485449182,-14313.73,0.00067123,120]
[354426925,1740485449192,-1386.02,0.00067123,120]
[354426926,1740485449202,-500.0,0.00067123,120]
[354426927,1740485449211,-588.0,0.00067123,120]
[354426928,1740485449221,-831.48,0.00067123,120]
[354426929,1740485449231,-959.53,0.00067123,120]
[354426930,1740485449240,-500.0,0.00067123,120]
[354426931,1740485449251,-500.0,0.00067123,30]
[354426932,1740485449260,-857.59,0.00067123,120]
[354426933,1740485449269,-393.12558699,0.00067123,3]
[354426934,1740485449293,-161.0247602,0.00067123,3]
[354426935,1740485449305,-2152.52965281,0.00067123,3]
[354426936,1740485449314,-652.3,0.00067123,120]
[354426937,1740485449325,-5286.16,0.00067123,120]
[354426938,1740485449335,-843.41,0.00067123,120]
[354426939,1740485449346,-500.0,0.00067123,120]
[354426940,1740485449356,-500.0,0.00067123,120]
[354426941,1740485449367,-500.0,0.00067123,120]
[354426942,1740485449377,-718.43,0.00067123,120]
[354426943,1740485449387,-598.47,0.00067123,120]
[354426944,1740485449397,-503.69757309,0.00067123,120]
[354426945,1740485449407,-500.0,0.00067123,120]
[354426946,1740485449417,-674.39,0.00067123,120]
[354426947,1740485449426,-596.18,0.00067123,120]
[354426948,1740485449436,-500.0,0.00067123,120]
[354426949,1740485449446,-500.0,0.00067123,120]
[354426950,1740485449456,-919.46,0.00067123,120]
[354426951,1740485449466,-500.0,0.00067396,120]
[354426952,1740485449475,-584.9690969,0.00067396,120]
[354426953,1740485449485,-500.0,0.00067396,120]
[354426954,1740485449495,-1014.42,0.00067396,120]
[354426955,1740485449505,-500.0,0.00067396,120]
[354426956,1740485449514,-500.0,0.00067396,120]
[354426957,1740485449524,-500.0,0.00067396,120]
[354426958,1740485449534,-500.0,0.00067396,120]
[354426959,1740485449544,-500.0,0.00067396,120]
[354426960,1740485449554,-500.0,0.00067396,120]
[354426961,1740485449564,-250.0,0.00067396,120]
[354426962,1740485449573,-500.0,0.00067396,120]
[354426963,1740485449583,-500.0,0.00067396,120]
[354426964,1740485449594,-1053.35,0.00067396,120]
[354426965,1740485449605,-500.0,0.00067396,120]
[354426966,1740485449618,-500.0,0.00067396,120]
[354426967,1740485449628,-500.0,0.00067396,120]
[354426968,1740485449639,-578.89,0.00067396,120]
[354426969,1740485449652,-500.0,0.00067396,120]
[354426970,1740485449666,-1999.03,0.00067396,120]
[354426971,1740485449682,-1172.97,0.00067396,120]
[354426972,1740485449693,-500.0,0.00067396,120]
[354426973,1740485449704,-500.0,0.00067396,120]
[354426974,1740485449715,-507.13566595,0.00067396,120]
[354426975,1740485449726,-548.26,0.00067396,120]
[354426976,1740485449736,-500.0,0.00067396,120]
[354426977,1740485449746,-503.10524481,0.00067396,120]
[354426978,1740485449757,-1939.25,0.00067396,120]
[354426979,1740485449767,-500.0,0.00067396,120]
[354426980,1740485449777,-500.0,0.00067396,120]
[354426981,1740485449787,-6398.6,0.00067396,120]
[354426982,1740485449796,-500.0,0.00067396,30]
[354426983,1740485449806,-536.99,0.00067396,120]
[354426984,1740485449815,-500.0,0.00067396,120]
[354426985,1740485449825,-654.9,0.00067396,120]
[354426986,1740485449835,-412.10276644,0.00067396,120]
[354426987,1740485449847,-87.89723356,0.00067396,120]
[354426988,1740485449859,-500.0,0.00067396,120]
[354426989,1740485449869,-177373.63,0.00067396,7]
[354426990,1740485449880,-1429.57,0.00067396,120]
[354426991,1740485449890,-500.0,0.00067396,120]
[354426992,1740485449901,-500.0,0.00067396,120]
[354426993,1740485449911,-609.5,0.00067396,120]
[354426994,1740485449994,-500.0,0.00067396,120]
[354426995,1740485450004,-3033.53,0.00067396,120]
[354426996,1740485450014,-500.0,0.00067396,120]
[354426997,1740485450024,-500.0,0.00067396,120]
[354426998,1740485450034,-523.36,0.00067396,120]
[354426999,1740485450043,-240.92301461,0.00067396,120]
[354427000,1740485450053,-510.31,0.00067396,120]
[354427001,1740485450062,-500.0,0.00067396,120]
[354427002,1740485450072,-884.39,0.00067396,120]
[354427003,1740485450082,-500.0,0.00067396,120]
[354427004,1740485450092,-1351.64,0.00067396,120]
[354427005,1740485450101,-500.0,0.00067396,120]
[354427006,1740485450112,-641.98748295,0.00067396,120]
[354427007,1740485450122,-1374.68,0.00067396,120]
[354427008,1740485450131,-500.0,0.00067396,120]
[354427009,1740485450141,-500.0,0.00067396,120]
[354427010,1740485450151,-1393.49,0.00067396,120]
[354427011,1740485450160,-500.0,0.00067396,120]
[354427012,1740485450170,-602.23,0.00067396,120]
[354427013,1740485450179,-4727.75,0.00067396,120]
[354427014,1740485450189,-36054.27,0.00067396,120]
[354427015,1740485450198,-528.01,0.00067396,120]
[354427016,1740485450208,-965.45,0.00067396,120]
[354427017,1740485450217,-423.35770158,0.00068422,2]
[354427018,1740485450227,-500.0,0.00068439,120]
[354427019,1740485450236,-1086.37,0.00068439,120]
[354427020,1740485450252,-620.96,0.00068439,120]
[354427021,1740485450262,-956.7,0.00068439,120]
[354427022,1740485450271,-799.78,0.00068439,120]
[354427023,1740485450281,-1100.17,0.00068439,120]
[354427024,1740485450295,-500.0,0.00068439,120]
[354427025,1740485450304,-2352.71,0.00068439,120]
[354427026,1740485450314,-187.56,0.00068481,120]
[354427027,1740485450323,-1839.27,0.00068492,120]
[354427028,1740485450332,-2605.66,0.00068492,120]
[354427029,1740485450342,-500.0,0.00068492,120]
[354427030,1740485450352,-1329.66,0.00068492,120]
[354427031,1740485450363,-14313.73,0.00068492,120]
[354427032,1740485450374,-1386.02,0.00068492,120]
[354427033,1740485450384,-500.0,0.00068492,120]
[354427034,1740485450394,-588.0,0.00068492,120]
[354427035,1740485450406,-831.48,0.00068492,120]
[354427036,1740485450415,-959.53,0.00068492,120]
[354427037,1740485450424,-500.0,0.00068492,120]
[354427038,1740485450436,-500.0,0.00068492,30]
[354427039,1740485450447,-857.59,0.00068492,120]
[354427040,1740485450457,-2706.68,0.00068492,3]
[354427041,1740485450467,-652.3,0.00068492,120]
[354427042,1740485450476,-5286.16,0.00068492,120]
[354427043,1740485450487,-843.41,0.00068492,120]
[354427044,1740485450496,-500.0,0.00068492,120]
[354427045,1740485450506,-500.0,0.00068492,120]
[354427046,1740485450516,-507.9205459,0.00068492,120]
[354427047,1740485450526,-718.43,0.00068492,120]
[354427048,1740485450535,-598.47,0.00068492,120]
[354427049,1740485450544,-500.0,0.00068492,120]
[354427050,1740485450554,-674.39,0.00068492,120]
[354427051,1740485450564,-596.18,0.00068492,120]
[354427052,1740485450574,-500.0,0.00068492,120]
[354427053,1740485450584,-500.0,0.00068492,120]
[354427054,1740485450593,-919.46,0.00068492,120]
[354427055,1740485450603,-500.0,0.00068766,120]
[354427056,1740485450613,-1014.42,0.00068766,120]
[354427057,1740485450623,-500.0,0.00068766,120]
[354427058,1740485450632,-500.0,0.00068766,120]
[354427059,1740485450642,-500.0,0.00068766,120]
[354427060,1740485450651,-500.0,0.00068766,120]
[354427061,1740485450662,-500.0,0.00068766,120]
[354427062,1740485450674,-500.0,0.00068766,120]
[354427063,1740485450684,-250.0,0.00068766,120]
[354427064,1740485450693,-500.0,0.00068766,120]
[354427065,1740485450703,-500.0,0.00068766,120]
[354427066,1740485450712,-1053.35,0.00068766,120]
[354427067,1740485450722,-500.0,0.00068766,120]
[354427068,1740485450731,-500.0,0.00068766,120]
[354427069,1740485450741,-513.21578963,0.00068766,120]
[354427070,1740485450751,-578.89,0.00068766,120]
[354427071,1740485450761,-500.0,0.00068766,120]
[354427072,1740485450771,-1999.03,0.00068766,120]
[354427073,1740485450780,-1172.97,0.00068766,120]
[354427074,1740485450790,-500.0,0.00068766,120]
[354427075,1740485450800,-500.0,0.00068766,120]
[354427076,1740485450810,-548.26,0.00068766,120]
[354427077,1740485450820,-500.0,0.00068766,120]
[354427078,1740485450829,-1221.25521104,0.00068766,120]
[354427079,1740485450842,-717.99478896,0.00068766,120]
[354427080,1740485450852,-254.25483756,0.00068766,120]
[354427081,1740485450862,-259.40972313,0.00068766,120]
[354427082,1740485450872,-6398.6,0.00068766,120]
[354427083,1740485450881,-500.0,0.00068766,30]
[354427084,1740485450891,-536.99,0.00068766,120]
[354427085,1740485450900,-500.0,0.00068766,120]
[354427086,1740485450910,-654.9,0.00068766,120]
[354427087,1740485450919,-500.0,0.00068766,120]
[354427088,1740485450929,-500.0,0.00068766,120]
[354427089,1740485450939,-177373.63,0.00068766,7]
[354427090,1740485450948,-1429.57,0.00068766,120]
[354427091,1740485450957,-500.0,0.00068766,120]
[354427092,1740485451033,-500.0,0.00068766,120]
[354427093,1740485451043,-609.5,0.00068766,120]
[354427094,1740485451053,-500.0,0.00068766,120]
[354427095,1740485451062,-3033.53,0.00068766,120]
[354427096,1740485451072,-500.0,0.00068766,120]
[354427097,1740485451081,-500.0,0.00068766,120]
[354427098,1740485451090,-523.36,0.00068766,120]
[354427099,1740485451100,-510.31,0.00068766,120]
[354427100,1740485451110,-500.0,0.00068766,120]
[354427101,1740485451120,-884.39,0.00068766,120]
[354427102,1740485451130,-500.0,0.00068766,120]
[354427103,1740485451139,-1351.64,0.00068766,120]
[354427104,1740485451149,-505.99693242,0.00068766,120]
[354427105,1740485451159,-1374.68,0.00068766,120]
[354427106,1740485451169,-500.0,0.00068766,120]
[354427107,1740485451178,-500.0,0.00068766,120]
[354427108,1740485451188,-1393.49,0.00068766,120]
[354427109,1740485451197,-500.0,0.00068766,120]
[354427110,1740485451206,-151.0,0.00068766,120]
[354427111,1740485451215,-602.23,0.00068766,120]
[354427112,1740485451225,-4727.75,0.00068766,120]
[354427113,1740485451235,-151.0,0.00068766,120]
[354427114,1740485451244,-151.0,0.00068766,120]
[354427115,1740485451254,-36054.27,0.00068766,120]
[354427116,1740485451264,-528.01,0.00068766,120]
[354427117,1740485451274,-965.45,0.00068766,120]
[354427118,1740485451283,-1000.0,0.000698,30]
[354427119,1740485451292,-500.0,0.00069809,120]
[354427120,1740485451302,-1086.37,0.00069809,120]
[354427121,1740485451312,-620.96,0.00069809,120]
[354427122,1740485451321,-956.7,0.00069809,120]
[354427123,1740485451331,-799.78,0.00069809,120]
[354427124,1740485451341,-1100.17,0.00069809,120]
[354427125,1740485451350,-500.0,0.00069809,120]
[354427126,1740485451360,-2352.71,0.00069809,120]
[354427127,1740485451370,-1839.27,0.00069862,120]
[354427128,1740485451379,-2605.66,0.00069862,120]
[354427129,1740485451389,-500.0,0.00069862,120]
[354427130,1740485451400,-1329.66,0.00069862,120]
[354427131,1740485451410,-14313.73,0.00069862,120]
[354427132,1740485451419,-1386.02,0.00069862,120]
[354427133,1740485451429,-500.0,0.00069862,120]
[354427134,1740485451439,-588.0,0.00069862,120]
[354427135,1740485451449,-831.48,0.00069862,120]
[354427136,1740485451459,-959.53,0.00069862,120]
[354427137,1740485451468,-500.0,0.00069862,120]
[354427138,1740485451478,-500.0,0.00069862,30]
[354427139,1740485451487,-857.59,0.00069862,120]
[354427140,1740485451497,-2706.68,0.00069862,3]
[354427141,1740485451506,-652.3,0.00069862,120]
[354427142,1740485451515,-5286.16,0.00069862,120]
[354427143,1740485451525,-843.41,0.00069862,120]
[354427144,1740485451534,-500.0,0.00069862,120]
[354427145,1740485451543,-500.0,0.00069862,120]
[354427146,1740485451553,-718.43,0.00069862,120]
[354427147,1740485451562,-598.47,0.00069862,120]
[354427148,1740485451572,-500.0,0.00069862,120]
[354427149,1740485451581,-674.39,0.00069862,120]
[354427150,1740485451590,-596.18,0.00069862,120]
[354427151,1740485451600,-500.0,0.00069862,120]
[354427152,1740485451609,-500.0,0.00069862,120]
[354427153,1740485451619,-919.46,0.00069862,120]
[354427154,1740485451628,-2335.39413821,0.0007,120]
[354427155,1740485451638,-5000.0,0.0007,100]
[354427156,1740485451647,-2000.0,0.0007,120]
[354427157,1740485451657,-622.0,0.00070136,120]
[354427158,1740485451669,-1014.42,0.00070136,120]
[354427159,1740485451679,-500.0,0.00070136,120]
[354427160,1740485451688,-500.0,0.00070136,120]
[354427161,1740485451697,-500.0,0.00070136,120]
[354427162,1740485451707,-506.50137077,0.00070136,120]
[354427163,1740485451717,-500.0,0.00070136,120]
[354427164,1740485451726,-500.0,0.00070136,120]
[354427165,1740485451735,-250.0,0.00070136,120]
[354427166,1740485451747,-500.0,0.00070136,120]
[354427167,1740485451757,-500.0,0.00070136,120]
[354427168,1740485451767,-1053.35,0.00070136,120]
[354427169,1740485451777,-500.0,0.00070136,120]
[354427170,1740485451786,-500.0,0.00070136,120]
[354427171,1740485451796,-578.89,0.00070136,120]
[354427172,1740485451805,-500.0,0.00070136,120]
[354427173,1740485451814,-1999.03,0.00070136,120]
[354427174,1740485451824,-1172.97,0.00070136,120]
[354427175,1740485451834,-500.0,0.00070136,120]
[354427176,1740485451843,-500.0,0.00070136,120]
[354427177,1740485451853,-548.26,0.00070136,120]
[354427178,1740485451863,-500.0,0.00070136,120]
[354427179,1740485451872,-1939.25,0.00070136,120]
[354427180,1740485451882,-6398.6,0.00070136,120]
[354427181,1740485451892,-500.0,0.00070136,30]
[354427182,1740485451901,-536.99,0.00070136,120]
[354427183,1740485451911,-500.0,0.00070136,120]
[354427184,1740485451921,-654.9,0.00070136,120]
[354427185,1740485451994,-500.0,0.00070136,120]
[354427186,1740485452003,-439.10720458,0.00070136,120]
[354427187,1740485452013,-177373.63,0.00070136,7]
[354427188,1740485452023,-1429.57,0.00070136,120]
[354427189,1740485452034,-500.0,0.00070136,120]
[354427190,1740485452046,-500.0,0.00070136,120]
[354427191,1740485452056,-609.5,0.00070136,120]
[354427192,1740485452065,-500.0,0.00070136,120]
[354427193,1740485452076,-3033.53,0.00070136,120]
[354427194,1740485452086,-500.0,0.00070136,120]
[354427195,1740485452096,-481.838,0.00070136,120]
[354427196,1740485452106,-523.36,0.00070136,120]
[354427197,1740485452117,-510.31,0.00070136,120]
[354427198,1740485452128,-500.0,0.00070136,120]
[354427199,1740485452138,-884.39,0.00070136,120]
[354427200,1740485452148,-500.0,0.00070136,120]
[354427201,1740485452158,-1351.64,0.00070136,120]
[354427202,1740485452168,-151.0,0.00070136,120]
[354427203,1740485452178,-1374.68,0.00070136,120]
[354427204,1740485452188,-151.0,0.00070136,120]
[354427205,1740485452199,-500.0,0.00070136,120]
[354427206,1740485452208,-500.0,0.00070136,120]
[354427207,1740485452217,-1393.49,0.00070136,120]
[354427208,1740485452227,-500.0,0.00070136,120]
[354427209,1740485452236,-151.0,0.00070136,120]
[354427210,1740485452246,-602.23,0.00070136,120]
[354427211,1740485452255,-4727.75,0.00070136,120]
[354427212,1740485452265,-161.847331,0.00070136,120]
[354427213,1740485452275,-151.0,0.00070136,120]
[354427214,1740485452285,-36054.27,0.00070136,120]
[354427215,1740485452295,-528.01,0.00070136,120]
[354427216,1740485452305,-965.45,0.00070136,120]
[354427217,1740485452314,-150.0,0.00070173,15]
[354427218,1740485452324,-250.0,0.00070721,15]
[354427219,1740485452334,-500.0,0.00071179,120]
[354427220,1740485452343,-1086.37,0.00071179,120]
[354427221,1740485452353,-620.96,0.00071179,120]
[354427222,1740485452363,-956.7,0.00071179,120]
[354427223,1740485452373,-799.78,0.00071179,120]
[354427224,1740485452383,-1100.17,0.00071179,120]
[354427225,1740485452392,-500.0,0.00071179,120]
[354427226,1740485452402,-2352.71,0.00071179,120]
[354427227,1740485452412,-1839.27,0.00071232,120]
[354427228,1740485452432,-2605.66,0.00071232,120]
[354427229,1740485452451,-500.0,0.00071232,120]
[354427230,1740485452470,-1329.66,0.00071232,120]
[354427231,1740485452491,-14313.73,0.00071232,120]
[354427232,1740485452509,-1386.02,0.00071232,120]
[354427233,1740485452525,-500.0,0.00071232,120]
[354427234,1740485452544,-588.0,0.00071232,120]
[354427235,1740485452559,-831.48,0.00071232,120]
[354427236,1740485452576,-959.53,0.00071232,120]
[354427237,1740485452595,-500.0,0.00071232,120]
[354427238,1740485452616,-500.0,0.00071232,30]
[354427239,1740485452629,-857.59,0.00071232,120]
[354427240,1740485452649,-2706.68,0.00071232,3]
[354427241,1740485452665,-652.3,0.00071232,120]
[354427242,1740485452684,-5286.16,0.00071232,120]
[354427243,1740485452697,-843.41,0.00071232,120]
[354427244,1740485452713,-500.0,0.00071232,120]
[354427245,1740485452729,-718.43,0.00071232,120]
[354427246,1740485452744,-598.47,0.00071232,120]
[354427247,1740485452760,-500.0,0.00071232,120]
[354427248,1740485452776,-674.39,0.00071232,120]
[354427249,1740485452792,-596.18,0.00071232,120]
[354427250,1740485452808,-506.91973998,0.00071232,120]
[354427251,1740485452823,-500.0,0.00071232,120]
[354427252,1740485452839,-919.46,0.00071232,120]
[354427253,1740485452854,-423.35770158,0.00071243,2]
[354427254,1740485452872,-350.0,0.00071268,15]
[354427255,1740485452888,-500.0,0.00071289,15]
[354427256,1740485452904,-500.0,0.00071289,15]
[354427257,1740485452919,-1014.42,0.00071506,120]
[354427258,1740485452935,-500.0,0.00071506,120]
[354427259,1740485452950,-500.0,0.00071506,120]
[354427260,1740485452965,-500.0,0.00071506,120]
[354427261,1740485452977,-500.0,0.00071506,120]
[354427262,1740485452987,-500.0,0.00071506,120]
[354427263,1740485452996,-250.0,0.00071506,120]
[354427264,1740485453006,-500.0,0.00071506,120]
[354427265,1740485453015,-500.0,0.00071506,120]
[354427266,1740485453025,-1053.35,0.00071506,120]
[354427267,1740485453035,-500.0,0.00071506,120]
[354427268,1740485453044,-500.0,0.00071506,120]
[354427269,1740485453055,-578.89,0.00071506,120]
[354427270,1740485453222,-500.0,0.00071506,120]
[354427271,1740485453233,-1999.03,0.00071506,120]
[354427272,1740485453243,-1172.97,0.00071506,120]
[354427273,1740485453252,-500.0,0.00071506,120]
[354427274,1740485453262,-500.0,0.00071506,120]
[354427275,1740485453272,-548.26,0.00071506,120]
[354427276,1740485453281,-500.0,0.00071506,120]
[354427277,1740485453291,-151.493971,0.00071506,120]
[354427278,1740485453301,-1939.25,0.00071506,120]
[354427279,1740485453311,-151.0,0.00071506,120]
[354427280,1740485453320,-6398.6,0.00071506,120]
[354427281,1740485453329,-500.0,0.00071506,30]
[354427282,1740485453339,-536.99,0.00071506,120]
[354427283,1740485453348,-500.0,0.00071506,120]
[354427284,1740485453358,-654.9,0.00071506,120]
[354427285,1740485453367,-500.0,0.00071506,120]
[354427286,1740485453377,-151.0,0.00071506,120]
[354427287,1740485453386,-177373.63,0.00071506,7]
[354427288,1740485453396,-1429.57,0.00071506,120]
[354427289,1740485453406,-534.58429925,0.00071506,120]
[354427290,1740485453416,-500.0,0.00071506,120]
[354427291,1740485453426,-609.5,0.00071506,120]
[354427292,1740485453435,-482.951425,0.00071506,120]
[354427293,1740485453444,-500.0,0.00071506,120]
[354427294,1740485453454,-482.951425,0.00071506,120]
[354427295,1740485453463,-3033.53,0.00071506,120]
[354427296,1740485453473,-500.0,0.00071506,120]
[354427297,1740485453483,-523.36,0.00071506,120]
[354427298,1740485453493,-151.0,0.00071506,120]
[354427299,1740485453503,-510.31,0.00071506,120]
[354427300,1740485453512,-167.70244,0.00071506,120]
[354427301,1740485453522,-500.0,0.00071506,120]
[354427302,1740485453532,-167.70244,0.00071506,120]
[354427303,1740485453541,-884.39,0.00071506,120]